bitfinex-derivatives/quotes_ETHF0:USTF0_20251116
["timestamp","ask_amount","ask_price","bid_price","bid_amount"]
[1763333933752,3.2078,3093.3,3093.2,0.00876119]
[1763333934653,0.52417,3092.9,3092.3,3.2078]
[1763333934862,3.2078,3092.7,3092.3,3.2078]
[1763333935158,0.6664,3092.5,3092.3,3.2078]
[1763333935352,0.9733,3092.4,3092.3,3.2078]
[1763333935657,0.9733,3091.9,3091.8,3.2078]
[1763333935850,0.9733,3091.9,3091.8,0.00383103]
[1763333940465,0.9733,3091.9,3090.8,0.26628282]
[1763333940466,0.9733,3090.9,3090.8,3.2078]
[1763333940666,0.9733,3090.4,3089.9,3.2078]
[1763333940868,0.6664,3090.0,3089.9,3.2078]
[1763333941170,0.6664,3090.5,3089.9,4.2353]
[1763333941468,0.67508167,3090.5,3089.9,4.24425272]
[1763333941665,0.67508167,3090.5,3089.9,1.03645272]
[1763333943471,1.6397,3090.0,3089.9,0.00895272]
[1763333943669,0.9733,3089.4,3089.3,3.2078]
[1763333943868,0.9733,3089.4,3088.7,3.2401766]
[1763333944665,0.9733,3089.4,3088.7,3.24877172]
[1763333944864,3.2078,3089.2,3088.7,3.24877172]
[1763333945372,0.9733,3088.8,3088.7,3.24877172]
[1763333945579,0.9733,3088.8,3088.7,0.04097172]
[1763333945972,3.2078,3089.2,3089.1,1.0365]
[1763333946167,3.2078,3090.3,3089.3,1.0365]
[1763333946381,3.2078,3090.3,3089.7,3.2078]
[1763333946579,3.2078,3090.3,3090.2,1.0365]
[1763333946879,3.2078,3091.1,3091.0,1.0365]
[1763333947082,0.6664,3091.5,3091.0,1.0365]
[1763333947269,3.2078,3091.6,3091.0,4.2443]
[1763333947473,3.73219,3091.6,3091.0,4.2443]
[1763333947778,0.52441,3091.5,3091.0,3.21677259]
[1763333947980,0.9733,3091.1,3091.0,0.00897259]
[1763333948276,0.9733,3090.6,3090.0,3.2078]
[1763333948476,0.9733,3090.1,3090.0,3.2078]
[1763333948675,0.6664,3090.5,3090.0,3.2078]
[1763333949267,3.8742,3091.2,3090.4,3.2078]
[1763333950080,3.2078,3091.2,3091.1,1.0365]
[1763333950278,3.21520029,3091.6,3091.1,4.2443]
[1763333950576,0.00740029,3091.6,3091.5,1.0365]
[1763333950785,0.00740029,3091.6,3091.5,4.2443]
[1763333951383,3.2078,3092.5,3091.5,10.2443]
[1763333951582,3.2078,3092.9,3091.9,3.2078]
[1763333952082,3.2078,3093.4,3092.8,3.2078]
[1763333952480,0.00844568,3093.4,3093.3,3.2078]
[1763333953182,0.52415,3093.0,3092.8,0.00786938]
[1763333953378,0.52427,3092.3,3091.7,3.2078]
[1763333953587,3.73205,3092.5,3091.7,3.2078]
[1763333953773,0.52428,3092.3,3091.7,3.2078]
[1763333953979,0.52426,3092.4,3091.7,3.2078]
[1763333954178,0.52428,3092.3,3091.7,3.2078]
[1763333954383,3.2078,3092.5,3091.7,3.21564687]
[1763333955682,3.2078,3093.1,3092.4,1.0369]
[1763333955882,0.52412,3093.2,3092.4,1.0369]
[1763333956283,0.52413,3093.2,3092.4,1.0369]
[1763333956679,0.52414,3093.1,3092.4,1.0369]
[1763333956880,0.52416,3093.0,3092.4,1.0369]
[1763333957079,0.6664,3093.3,3092.4,1.0369]
[1763333957286,0.52414,3093.1,3092.4,1.0369]
[1763333957488,0.52414,3093.1,3092.3,3.2078]
[1763333958091,0.52416,3093.0,3092.3,3.2078]
[1763333958789,0.6664,3093.3,3092.3,3.2078]
[1763333959082,0.52416,3093.0,3092.3,3.2078]
[1763333960084,0.52412,3093.2,3092.3,3.2078]
[1763333960283,0.6664,3093.3,3092.3,3.2078]
[1763333960591,1.19051,3093.3,3092.3,3.2078]
[1763333961084,1.6432,3092.4,3092.3,3.2078]
[1763333961288,1.6432,3092.4,3091.8,3.2078]
[1763333961481,1.027,3091.9,3091.8,3.2078]
[1763333961679,0.52441,3091.5,3090.8,3.2078]
[1763333961988,0.52446,3091.2,3090.8,3.2078]
[1763333962189,1.55151,3090.9,3090.4,3.2078]
[1763333962491,0.52454,3090.7,3090.4,3.2078]
[1763333962784,0.52867571,3090.7,3090.4,3.2101479]
[1763333962978,4.2348,3090.5,3090.4,0.0023479]
[1763333963186,3.2078,3090.5,3090.4,0.0023479]
[1763333963385,3.95863298,3090.5,3090.4,0.0023479]
[1763333965692,3.2078,3091.5,3091.2,0.6259]
[1763333966689,3.211534,3091.5,3091.2,0.6259]
[1763333966994,3.211534,3091.5,3091.2,6.6259]
[1763333967184,0.00485224,3091.7,3091.4,3.2078]
[1763333967380,0.00485224,3091.7,3091.5,9.5704]
[1763333968091,0.00780632,3091.7,3091.5,9.5704]
[1763333968291,0.00780632,3091.7,3091.6,3.1094]
[1763333970392,0.00780632,3091.7,3091.4,3.2078]
[1763333970393,0.00780632,3091.7,3091.5,3.801]
[1763333970696,0.00780632,3091.7,3091.6,1.0741]
[1763333971196,0.52424,3092.5,3091.6,1.0741]
[1763333971498,1.027,3091.5,3091.4,3.2078]
[1763333972193,1.02950163,3091.5,3091.4,3.2078]
[1763333972994,0.00250163,3091.5,3091.4,3.2078]
[1763333973791,1.02950163,3091.5,3091.4,3.2078]
[1763333974494,1.77740873,3091.5,3091.4,3.2078]
[1763333978391,1.77740873,3091.5,3090.4,0.0023479]
[1763333978392,1.55147,3091.1,3090.9,3.2078]
[1763333978598,1.027,3091.0,3090.5,3.2078]
[1763333978793,0.7479071,3090.9,3090.5,3.2078]
[1763333980002,0.7479071,3090.8,3090.5,3.2078]
[1763333980302,0.52449,3091.0,3090.5,3.2078]
[1763333980504,0.74960802,3090.9,3090.8,1.0741]
[1763333980706,0.86746477,3091.2,3091.0,1.0741]
[1763333981001,1.61705374,3091.2,3091.0,1.0741]
[1763333981402,0.74958897,3091.1,3091.0,1.0741]
[1763333981900,0.74958897,3091.2,3091.0,1.0741]
[1763333982602,0.74958897,3091.2,3091.1,1.0741]
[1763333983298,0.74958897,3091.2,3090.5,3.2078]
[1763333983299,3.2078,3091.3,3091.2,1.0741]
[1763333983503,0.00250163,3091.5,3091.4,1.0741]
[1763333985401,1.64570163,3091.5,3091.3,3.2078]
[1763333985601,1.6432,3091.0,3090.9,3.2078]
[1763333985907,2.16769,3091.0,3090.9,3.2078]
[1763333986095,2.91770702,3091.0,3090.9,3.2078]
[1763333986805,2.39321702,3091.0,3090.9,3.2078]
[1763333987107,1.36621702,3091.0,3090.9,4.2819]
[1763333987698,0.75001702,3091.0,3090.9,4.2819]
[1763333987904,0.86746477,3091.2,3091.1,1.0741]
[1763333988104,1.61781144,3091.2,3091.1,1.0741]
[1763333988505,0.75034667,3091.2,3091.1,1.0741]
[1763333988700,0.75034667,3091.2,3090.9,3.2078]
[1763333990411,0.75034667,3091.2,3091.1,1.1098]
[1763333991203,3.2078,3091.3,3091.1,1.1098]
[1763333991804,3.2078,3091.3,3091.2,1.1098]
[1763333992001,0.00250163,3091.5,3091.4,1.1098]
[1763333995410,0.00485224,3091.8,3091.7,1.1098]
[1763333995612,0.00485224,3091.8,3091.3,3.2078]
[1763333996417,0.00887541,3091.8,3091.3,3.2078]
[1763333996715,0.00887541,3091.8,3091.7,1.1098]
[1763333999120,2.86291285,3092.2,3092.1,0.4858]
[1763334000118,0.00369419,3092.2,3092.1,3.6936]
[1763334000321,0.86746477,3093.2,3093.1,0.4821]
[1763334000516,1.96026477,3093.2,3092.7,3.2078]
[1763334000716,1.0928,3092.2,3091.7,3.2078]
[1763334000916,1.0928,3091.8,3091.7,3.2078]
[1763334001220,1.09660382,3091.8,3091.7,3.2078]
[1763334001418,0.00485224,3092.1,3092.0,0.4821]
[1763334001632,1.0928,3091.8,3091.7,3.21139943]
[1763334001923,0.608,3092.0,3091.7,3.21139943]
[1763334002219,1.13232,3092.0,3091.7,3.21139943]
[1763334002426,0.6117082,3092.0,3091.7,3.21139943]
[1763334003824,0.6117082,3092.0,3091.9,0.4821]
[1763334004625,0.0037082,3092.0,3091.9,0.4821]
[1763334005328,0.6117082,3092.0,3091.7,3.21139943]
[1763334005527,0.6117082,3092.0,3091.9,0.4821]
[1763334005725,1.61716,3091.8,3091.7,3.21139943]
[1763334005924,1.0928,3091.4,3091.3,3.2078]
[1763334006128,0.6117082,3092.0,3091.8,0.4857]
[1763334006428,0.6117082,3092.0,3091.9,0.4857]
[1763334006730,1.0928,3091.8,3091.7,3.2078]
[1763334007025,0.6117082,3092.0,3091.9,0.4857]
[1763334007222,0.6117082,3092.0,3091.7,0.00413908]
[1763334007527,1.0928,3091.8,3091.7,0.00413908]
[1763334007722,2.22521,3091.5,3091.4,0.00485224]
[1763334007928,2.22529,3091.0,3090.9,3.2078]
[1763334008124,0.608,3090.5,3090.0,3.2078]
[1763334008519,1.0928,3090.1,3090.0,3.2078]
[1763334008721,1.0928,3090.1,3090.0,3.21032098]
[1763334009027,4.3006,3090.1,3090.0,0.00252098]
[1763334009418,0.52472,3089.7,3089.1,3.2078]
[1763334009718,1.47785164,3090.0,3089.1,3.2078]
[1763334009920,3.2078,3089.7,3088.9,0.25761758]
[1763334010120,3.2078,3089.4,3088.7,3.2401766]
[1763334010321,1.0928,3088.8,3088.7,0.03510513]
[1763334010639,1.0928,3088.8,3087.7,1.69681032]
[1763334010640,0.608,3088.0,3087.7,1.69681032]
[1763334010923,0.608,3088.0,3087.4,3.2078]
[1763334011127,1.0928,3087.5,3086.8,3.2078]
[1763334011631,1.0928,3087.5,3086.8,3.21033945]
[1763334012026,1.61789,3087.5,3086.8,3.21033945]
[1763334012232,3.2078,3087.8,3086.8,3.21033945]
[1763334012822,0.61285224,3088.0,3086.8,3.21033945]
[1763334013026,0.61285224,3088.0,3087.4,3.2078]
[1763334013420,3.2078,3087.9,3087.4,3.2078]
[1763334013622,3.73283,3087.9,3087.4,3.2078]
[1763334013819,3.2078,3087.9,3086.8,3.21033945]
[1763334014020,3.2078,3087.9,3087.8,0.4947]
[1763334014526,0.52502,3087.9,3086.8,0.00253945]
[1763334014723,1.0928,3086.9,3085.6,3.2078]
[1763334014919,3.2078,3086.1,3085.0,3.46414207]
[1763334015123,0.608,3086.4,3085.0,3.2078]
[1763334015124,3.2078,3085.7,3085.0,3.2078]
[1763334015726,3.21145187,3085.7,3085.0,3.21104266]
[1763334015923,0.00486027,3085.9,3085.8,0.4947]
[1763334016124,0.608,3085.8,3085.4,3.2078]
[1763334016323,3.8158,3085.8,3085.4,3.2078]
[1763334016526,0.52539,3085.7,3085.0,3.21104266]
[1763334016731,3.8158,3085.8,3085.0,0.00324266]
[1763334016732,3.2078,3085.4,3085.0,0.00324266]
[1763334017023,0.00230839,3085.4,3085.3,0.2487]
[1763334017229,3.21010839,3085.4,3085.0,0.00324266]
[1763334018927,0.00486027,3085.9,3085.8,0.2383]
[1763334019132,0.00486027,3085.9,3085.8,3.4461]
[1763334019929,0.00760913,3085.9,3085.8,3.4461]
[1763334020527,0.6178,3085.8,3085.3,3.2078]
[1763334020829,0.6178,3085.8,3085.0,0.00324266]
[1763334020830,0.9657,3085.1,3085.0,0.00324266]
[1763334023125,0.9657,3085.1,3084.8,3.2078]
[1763334023126,0.9657,3084.3,3084.2,3.2078]
[1763334024025,0.9657,3084.3,3084.2,3.2119732]
[1763334025029,0.6178,3085.2,3084.2,9.2119732]
[1763334025234,3.2078,3085.5,3084.7,3.2078]
[1763334025437,2.84593575,3086.4,3084.2,0.0041732]
[1763334025438,3.2078,3086.0,3085.2,3.2078]
[1763334025732,3.2078,3086.0,3084.2,0.0041732]
[1763334025733,3.2078,3086.0,3084.5,3.2078]
[1763334025931,1.5835,3084.9,3084.4,3.2078]
[1763334026130,1.14333,3084.9,3084.4,3.2078]
[1763334026333,0.9657,3084.5,3084.4,3.2078]
[1763334026533,0.6178,3084.9,3084.4,3.2078]
[1763334027929,0.52555,3084.8,3084.4,3.2078]
[1763334028131,0.52562,3084.4,3084.2,0.0041732]
[1763334028332,0.52558,3084.6,3084.2,0.0041732]
[1763334028533,3.2078,3084.7,3084.2,0.0041732]
[1763334028738,0.52558,3084.6,3084.2,0.0041732]
[1763334028935,3.2078,3084.7,3084.2,0.0041732]
[1763334029331,3.2078,3084.3,3084.2,0.0041732]
[1763334030435,0.6178,3083.5,3082.8,3.2078]
[1763334030628,1.14844027,3083.5,3082.8,3.2078]
[1763334030823,0.5258,3083.3,3082.8,3.2078]
[1763334031030,0.52579,3083.4,3082.8,3.2078]
[1763334031341,0.52934897,3083.4,3082.8,3.211059]
[1763334031641,0.00355897,3083.4,3082.8,3.211059]
[1763334031938,1.1437,3082.8,3082.3,3.2078]
[1763334032234,0.52591,3082.7,3082.3,3.2078]
[1763334032435,0.6178,3082.1,3081.9,3.2078]
[1763334032635,5.906,3082.0,3081.4,3.2078]
[1763334032834,0.52611,3081.5,3081.4,0.00261207]
[1763334033136,0.6178,3080.7,3080.6,3.2078]
[1763334033339,0.6178,3080.7,3079.6,3.2078]
[1763334033535,0.52631,3080.3,3079.7,3.2078]
[1763334033742,0.6178,3080.0,3079.7,3.2078]
[1763334034129,0.62133869,3080.0,3079.7,3.21110365]
[1763334034341,0.52638,3079.9,3079.7,0.00330365]
[1763334035028,3.82913869,3080.0,3078.8,3.2078]
[1763334035234,3.2078,3079.6,3078.8,3.2078]
[1763334035529,0.6178,3079.3,3078.7,0.03248177]
[1763334035735,0.52656,3078.9,3078.7,0.03248177]
[1763334036041,0.62266887,3079.3,3078.7,3.24343306]
[1763334036234,0.62133869,3080.0,3079.1,3.2078]
[1763334036440,3.2078,3080.1,3079.1,3.2078]
[1763334036648,3.2078,3082.0,3080.0,3.2078]
[1763334036831,3.8256,3083.2,3081.3,3.2078]
[1763334037144,0.00486887,3082.6,3081.9,0.00486887]
[1763334037439,0.00840688,3082.6,3081.9,0.00908179]
[1763334037644,3.2078,3082.3,3081.9,0.00908179]
[1763334038140,3.2078,3082.3,3078.0,1.69681032]
[1763334038141,0.52614,3081.4,3080.7,3.2078]
[1763334038345,3.2078,3081.5,3080.7,3.2078]
[1763334038532,0.52617,3081.2,3080.7,3.2078]
[1763334038732,3.2078,3081.5,3080.7,3.2078]
[1763334039039,0.52627,3080.6,3080.3,3.2078]
[1763334039230,1.14405,3080.7,3080.3,3.2114693]
[1763334039437,0.6178,3080.7,3080.3,3.2114693]
[1763334039630,1.14405,3080.7,3080.3,3.2114693]
[1763334040236,0.6178,3080.7,3080.3,3.2114693]
[1763334040739,0.52629,3080.5,3080.3,3.2114693]
[1763334041130,0.6178,3080.7,3077.9,4.026]
[1763334041131,3.2078,3080.4,3079.9,3.2078]
[1763334041341,0.00486887,3080.8,3080.3,3.2078]
[1763334041537,3.2078,3081.9,3080.7,3.2078]
[1763334041837,3.2078,3081.9,3081.2,3.2078]
[1763334042032,3.21184235,3081.9,3081.2,3.2108349]
[1763334042233,3.21184235,3081.9,3081.2,0.0030349]
[1763334042435,3.2078,3081.5,3081.2,0.00790377]
[1763334042835,0.52612,3081.4,3081.2,3.77e-06]
[1763334043138,18.696,3081.4,3080.2,3.2078]
[1763334043442,18.696,3081.4,3079.7,3.2078]
[1763334043443,3.2078,3080.5,3079.7,3.2078]
[1763334043829,0.52635,3080.1,3079.7,3.21164655]
[1763334044032,5.77517887,3080.4,3079.7,3.21164655]
[1763334044234,0.52632,3080.3,3079.7,3.21164655]
[1763334044432,0.00486887,3080.4,3080.2,3.2078]
[1763334044642,5.397,3080.6,3080.2,3.2078]
[1763334045034,3.2078,3081.0,3080.2,3.2078]
[1763334045236,3.2078,3081.0,3079.7,0.00384655]
[1763334045237,3.21184235,3081.9,3080.6,3.2078]
[1763334045441,3.21184235,3081.9,3081.1,3.2078]
[1763334045644,0.00486887,3081.8,3081.5,3.2078]
[1763334046233,0.00486887,3081.8,3081.2,0.00486887]
[1763334046438,0.00486887,3081.8,3081.2,3.21266887]
[1763334046641,0.53092887,3081.8,3081.2,3.21266887]
[1763334046845,0.00486887,3081.8,3081.2,3.21266887]
[1763334047744,0.00486887,3081.8,3081.7,3.2078]
[1763334048340,0.6178,3082.5,3081.7,9.2078]
[1763334048639,3.2078,3082.8,3082.1,3.2078]
[1763334049348,3.21266887,3082.8,3082.1,3.2078]
[1763334049640,3.21657204,3082.8,3082.1,3.21068376]
[1763334049848,0.00877204,3082.8,3082.7,3.2078]
[1763334050142,3.2078,3083.4,3082.7,3.2078]
[1763334050337,3.2078,3084.0,3083.3,3.2078]
[1763334050736,0.5257,3083.9,3083.3,3.2078]
[1763334050941,0.00745681,3083.9,3083.3,3.21266887]
[1763334051548,0.53315681,3083.9,3083.3,3.21266887]
[1763334051844,0.52572,3083.8,3083.3,3.21266887]
[1763334052249,0.52574,3083.7,3083.3,3.21266887]
[1763334052443,0.00745681,3083.9,3083.3,3.21266887]
[1763334052749,0.52572,3083.8,3083.3,3.21266887]
[1763334052948,0.00745681,3083.9,3083.3,3.21266887]
[1763334053448,0.6191,3083.4,3083.3,0.00486887]
[1763334053846,0.52585,3083.0,3082.9,3.2078]
[1763334054160,0.52599,3082.2,3082.1,0.00288376]
[1763334055243,0.52604,3081.9,3081.8,0.00486887]
[1763334055441,3.73384,3081.9,3081.8,0.00486887]
[1763334055841,0.52604,3081.9,3081.8,0.00486887]
[1763334056042,3.73384,3081.9,3081.8,0.00486887]
[1763334056248,3.73384,3081.9,3081.8,0.00809331]
[1763334056647,0.52615,3081.3,3081.1,3.2078]
[1763334056849,0.52612,3081.5,3081.1,3.2078]
[1763334057046,0.6191,3081.6,3081.1,3.2078]
[1763334057242,0.52613,3081.4,3081.1,3.2078]
[1763334057739,0.52925395,3081.4,3081.1,3.21011269]
[1763334058448,0.00312395,3081.4,3081.1,3.21011269]
[1763334058842,0.52616,3081.3,3081.1,3.21011269]
[1763334059937,0.76065173,3081.2,3081.1,0.00231269]
[1763334060150,0.52618,3081.1,3080.9,0.00486887]
[1763334060352,0.6191,3080.8,3080.1,3.2078]
[1763334060548,3.2078,3080.5,3080.1,3.2078]
[1763334060751,0.52632,3080.3,3079.3,3.2078]
[1763334061052,0.52633,3080.3,3079.7,3.2078]
[1763334061253,0.52633,3080.3,3079.7,3.21042109]
[1763334061254,0.52634,3080.2,3079.7,3.21042109]
[1763334061454,0.86224728,3080.9,3080.1,3.2078]
[1763334061750,3.2078,3081.0,3080.1,3.2078]
[1763334061951,0.7614222,3080.9,3080.1,3.2078]
[1763334062153,3.2078,3081.0,3080.1,3.2078]
[1763334062354,0.76150742,3080.9,3080.1,3.2078]
[1763334062553,0.00486887,3080.8,3080.2,0.00486887]
[1763334062753,3.7341,3080.4,3080.2,0.00486887]
[1763334063050,0.76150742,3080.3,3079.7,0.00262109]
[1763334063254,0.5264,3079.8,3079.7,0.00262109]
[1763334063850,9.36935796,3079.8,3078.0,3.2078]
[1763334064154,9.36935796,3079.8,3077.6,0.5895]
[1763334064155,3.2078,3078.8,3077.6,0.5895]
[1763334064352,0.52672,3078.0,3077.5,3.2078]
[1763334064556,0.52677,3077.7,3077.5,3.2078]
[1763334064752,0.52677,3077.7,3075.3,2.30029549]
[1763334064753,0.52678,3077.6,3076.5,3.2078]
[1763334064952,0.52683,3077.3,3076.9,3.2078]
[1763334065157,3.2078,3077.3,3076.5,0.00409481]
[1763334065349,0.52696,3076.5,3075.8,3.19989481]
[1763334065653,3.2078,3075.9,3075.2,0.5895]
[1763334065954,2.61050134,3075.8,3074.9,3.2078]
[1763334066252,3.2078,3075.9,3073.9,3.2078]
[1763334066253,3.2078,3075.0,3073.9,3.2078]
[1763334066457,3.2078,3074.8,3074.0,3.2078]
[1763334066651,3.2078,3074.8,3073.9,0.00405828]
[1763334067044,0.00349292,3075.0,3074.2,3.2078]
[1763334067253,0.00487718,3075.9,3075.3,0.5895]
[1763334067558,0.00487718,3075.9,3075.7,3.2078]
[1763334068257,0.0086388,3075.9,3075.7,3.2078]
[1763334069055,0.0086388,3075.9,3074.4,0.5895]
[1763334069056,0.0086388,3075.9,3075.2,3.2078]
[1763334069252,3.2078,3075.5,3074.8,3.2078]
[1763334069458,3.2078,3075.5,3074.4,3.7973]
[1763334070058,2.61050134,3074.6,3073.2,3.2078]
[1763334070258,2.61050134,3074.6,3073.7,3.2078]
[1763334070259,3.2078,3074.3,3073.7,3.2078]
[1763334070856,3.2078,3075.2,3074.2,3.2078]
[1763334071262,3.2078,3075.2,3075.0,0.5895]
[1763334071563,3.2078,3075.2,3074.2,3.2078]
[1763334071764,0.52721,3075.1,3074.2,3.2078]
[1763334071958,3.2078,3075.2,3074.2,3.2078]
[1763334072364,3.2078,3074.4,3073.5,0.5895]
[1763334072658,2.61050134,3075.3,3073.7,3.2078]
[1763334072659,3.2078,3074.8,3073.7,3.2078]
[1763334072862,3.2078,3074.4,3073.7,3.2078]
[1763334073053,3.2078,3074.8,3073.7,3.2078]
[1763334073563,3.73507,3074.8,3073.7,3.2078]
[1763334073866,3.2078,3074.4,3073.7,3.2078]
[1763334074463,3.2078,3074.8,3073.7,3.2078]
[1763334074762,3.2078,3075.3,3074.4,0.5895]
[1763334075062,3.2078,3074.9,3074.4,0.5895]
[1763334076063,3.2078,3074.5,3073.9,0.00405828]
[1763334076265,0.52734,3074.4,3073.9,0.00405828]
[1763334076466,3.2078,3074.5,3073.9,0.00405828]
[1763334076670,3.2078,3074.0,3073.9,0.00405828]
[1763334077676,9.2078,3074.0,3072.6,0.5895]
[1763334077866,9.2078,3074.0,3071.2,0.09064158]
[1763334077867,2.61050134,3072.7,3072.1,3.2078]
[1763334078067,6.35080852,3072.7,3071.5,3.2078]
[1763334078267,3.2078,3072.3,3071.5,3.2078]
[1763334078676,3.2078,3071.8,3071.5,0.0037386]
[1763334079578,3.2078,3071.8,3071.5,0.5315486]
[1763334079872,3.2078,3071.8,3071.5,0.0037386]
[1763334080280,0.5278,3071.7,3071.5,0.0037386]
[1763334080472,6.0,3071.7,3070.3,3.2078]
[1763334080676,3.2078,3070.6,3070.0,0.52807]
[1763334080877,3.2078,3070.6,3070.2,0.52804]
[1763334081074,3.2078,3070.6,3070.0,0.52807]
[1763334081374,0.52804,3070.3,3069.4,3.2078]
[1763334081567,0.00487718,3070.9,3069.0,0.6407]
[1763334081568,3.2078,3069.6,3069.0,0.6407]
[1763334081767,3.2078,3069.2,3068.7,0.03258762]
[1763334082183,3.21181447,3069.2,3068.7,0.56481504]
[1763334082479,3.21181447,3069.2,3068.7,0.56482504]
[1763334082679,3.74003447,3069.2,3068.7,0.03652504]
[1763334082876,3.21181447,3069.2,3068.7,0.03652504]
[1763334083277,11.717,3070.8,3068.7,0.03652504]
[1763334083278,3.2078,3069.6,3069.5,0.52816]
[1763334083469,3.2078,3070.6,3070.4,0.528]
[1763334083675,3.2078,3071.3,3071.2,0.52786]
[1763334083881,3.2078,3071.9,3071.2,3.2078]
[1763334084074,0.52791,3071.0,3069.9,0.52809]
[1763334084274,5.81830134,3070.7,3070.1,3.2078]
[1763334084479,0.00853846,3070.7,3070.5,3.2078]
[1763334084679,0.00853846,3070.7,3070.1,3.21641176]
[1763334085393,0.00853846,3070.7,3070.5,3.2078]
[1763334085592,3.2078,3072.4,3070.5,3.2078]
[1763334085885,3.2078,3072.4,3071.7,3.2078]
[1763334086088,3.2078,3072.0,3071.2,3.2078]
[1763334086684,0.5278,3071.7,3071.2,3.2078]
[1763334086882,0.52781,3071.6,3071.2,3.2078]
[1763334087492,0.00301901,3071.7,3071.2,3.2078]
[1763334087785,3.2078,3072.5,3071.6,0.52779]
[1763334087989,2.61050134,3072.4,3071.7,3.2078]
[1763334088488,0.52771,3072.2,3071.7,3.2078]
[1763334088793,0.00404184,3072.2,3071.7,3.2078]
[1763334088989,0.00488552,3072.3,3071.7,3.2078]
[1763334089184,3.2078,3072.5,3072.3,0.52767]
[1763334089387,0.52754,3073.2,3072.4,0.52766]
[1763334089594,0.52759,3072.9,3072.2,0.5277]
[1763334089794,3.73539,3072.9,3072.2,0.5277]
[1763334090092,3.21641505,3072.9,3072.4,0.52766]
[1763334090289,3.21641505,3072.9,3072.5,0.52764]
[1763334090489,3.21641505,3072.9,3072.5,3.73544]
[1763334090684,0.00861505,3072.9,3072.3,0.52768]
[1763334091195,0.00861505,3072.9,3072.5,3.2078]
[1763334091389,0.00861505,3072.9,3072.7,0.52761]
[1763334091690,0.00861505,3072.9,3072.5,3.73544]
[1763334091994,3.21641505,3072.9,3072.2,3.2078]
[1763334092593,3.21641505,3072.9,3071.8,3.2078]
[1763334092796,3.21641505,3072.9,3072.0,0.26918552]
[1763334093096,3.21641505,3072.9,3072.2,3.2078]
[1763334093889,0.5276,3072.8,3072.2,3.73549]
[1763334094087,3.21641505,3072.9,3072.2,3.2078]
[1763334094496,3.21641505,3072.9,3072.3,0.52767]
[1763334094698,3.21641505,3072.9,3072.7,0.52761]
[1763334095393,3.2078,3073.8,3073.6,0.52745]
[1763334095597,3.2078,3073.8,3072.6,3.8727]
[1763334095598,3.2078,3074.2,3074.1,0.52737]
[1763334096388,3.21029425,3074.2,3074.1,0.5296907]
[1763334096795,3.73765425,3074.2,3073.8,0.00488552]
[1763334096991,3.2078,3073.2,3071.1,3.2078]
[1763334097192,0.52786,3071.3,3071.1,3.2078]
[1763334097394,3.2078,3071.2,3070.3,3.2078]
[1763334097692,3.2078,3070.5,3069.0,3.8727]
[1763334097893,0.52816,3069.6,3069.4,0.00488552]
[1763334098293,0.00488552,3070.1,3069.0,3.21194692]
[1763334098488,1.31332996,3070.1,3069.0,3.19994692]
[1763334098791,3.2078,3069.2,3068.4,3.2078]
[1763334098990,3.2078,3069.2,3068.7,0.02058762]
[1763334099387,0.52832,3068.7,3067.8,3.2078]
[1763334099586,3.2078,3069.2,3068.2,3.2078]
[1763334099790,3.2078,3069.9,3068.7,3.2078]
[1763334099986,3.2078,3070.3,3068.7,3.2078]
[1763334100191,3.2078,3070.7,3069.6,3.2078]
[1763334100390,3.2078,3071.4,3070.4,3.2078]
[1763334100590,3.2078,3071.2,3070.2,3.2078]
[1763334101292,3.2078,3070.8,3069.9,3.2078]
[1763334101488,0.00488552,3070.7,3069.9,3.21147438]
[1763334102195,0.00488552,3070.7,3070.1,3.2078]
[1763334102401,0.00488552,3070.7,3070.1,3.7922]
[1763334102695,0.00488552,3070.7,3070.5,3.2078]
[1763334104904,3.21268552,3070.7,3069.9,3.21147438]
[1763334105093,0.52802,3070.4,3069.9,3.21147438]
[1763334105398,0.6323,3070.0,3069.1,0.096]
[1763334105601,3.2078,3069.5,3069.1,0.096]
[1763334105902,0.78165464,3069.4,3069.2,0.52822]
[1763334106197,0.78165464,3069.4,3067.0,2.31173735]
[1763334106198,0.52837,3068.4,3067.6,0.52848]
[1763334106395,0.52837,3068.4,3067.8,3.2078]
[1763334106604,0.00812506,3068.4,3067.8,3.21640125]
[1763334106792,3.2078,3068.3,3067.8,3.21640125]
[1763334106988,0.52844,3067.9,3067.8,0.00860125]
[1763334107194,0.52841,3068.1,3067.8,0.00860125]
[1763334107395,0.00812506,3068.4,3067.9,3.73623]
[1763334107594,0.00812506,3068.4,3067.9,3.2078]
[1763334107895,0.00812506,3068.4,3068.3,3.2078]
[1763334108700,0.00812506,3068.4,3067.8,3.21640125]
[1763334109002,0.00812506,3068.4,3068.3,3.2078]
[1763334109590,3.2078,3069.3,3068.3,9.2078]
[1763334109799,3.2078,3069.3,3069.1,0.52823]
[1763334110205,3.2078,3069.3,3068.9,0.52826]
[1763334110398,3.2078,3069.3,3068.8,3.2078]
[1763334110606,3.73608,3068.9,3068.1,3.2078]
[1763334110800,3.2078,3068.9,3068.1,3.2078]
[1763334110997,0.00366852,3069.3,3068.7,3.2078]
[1763334111197,3.2078,3068.9,3068.0,3.2078]
[1763334111398,1.64913112,3069.3,3067.8,0.00860125]
[1763334111399,3.7361,3068.8,3067.9,3.2078]
[1763334111598,0.52844,3068.0,3067.8,0.00860125]
[1763334111807,3.73624,3068.0,3067.8,0.00860125]
[1763334112307,10.37714,3068.0,3067.8,0.00860125]
[1763334112600,0.52855,3067.3,3066.3,3.2078]
[1763334112801,0.52857,3067.2,3066.3,3.2078]
[1763334113102,0.52876,3066.1,3065.9,3.2078]
[1763334113303,3.2078,3066.6,3065.9,3.2078]
[1763334113504,0.52868,3066.5,3065.9,3.21512347]
[1763334113802,0.52872,3066.3,3065.9,3.21512347]
[1763334114006,0.52873,3066.2,3065.9,0.00732347]
[1763334114199,0.52877,3066.0,3065.9,0.00732347]
[1763334114507,2.31173735,3066.0,3064.9,3.2078]
[1763334114802,0.52889,3065.3,3064.9,3.2078]